fUSD/lending_fUSD_20260610
["ID","MTS","AMOUNT","RATE_DAILY","PERIOD"]
[424703023,1781063483000,-303.22103381,0.00029828,2]
[424703022,1781063483000,-447.92753795,0.00029828,2]
[424703027,1781063483000,-577.80687094,0.00029828,2]
[424703028,1781063483000,-472.81469587,0.00029828,2]
[424703021,1781063483000,-495.94352007,0.00029828,2]
[424703084,1781063484000,-1000.0,0.00029863,60]
[424703065,1781063484000,-1000.0,0.00029863,60]
[424703068,1781063484000,-1000.0,0.00029863,60]
[424703069,1781063484000,-1000.0,0.00029863,60]
[424703071,1781063484000,-1000.0,0.00029863,60]
[424703073,1781063484000,-1000.0,0.00029863,60]
[424703072,1781063484000,-1000.0,0.00029863,60]
[424703074,1781063484000,-1000.0,0.00029863,60]
[424703076,1781063484000,-1000.0,0.00029863,60]
[424703075,1781063484000,-1000.0,0.00029863,60]
[424703080,1781063484000,-1000.0,0.00029863,60]
[424703083,1781063484000,-1000.0,0.00029863,60]
[424703082,1781063484000,-1000.0,0.00029863,60]
[424703079,1781063484000,-1000.0,0.00029863,60]
[424703078,1781063484000,-1000.0,0.00029863,60]
[424703081,1781063484000,-1000.0,0.00029863,60]
[424703067,1781063484000,-1000.0,0.00029863,60]
[424703086,1781063484000,-1000.0,0.00029863,60]
[424703085,1781063484000,-1000.0,0.00029863,60]
[424703093,1781063484000,-1000.0,0.00029863,60]
[424703092,1781063484000,-1000.0,0.00029863,60]
[424703094,1781063484000,-1000.0,0.00029863,60]
[424703091,1781063484000,-1000.0,0.00029863,60]
[424703077,1781063484000,-1000.0,0.00029863,60]
[424703066,1781063484000,-1000.0,0.00029863,60]
[424703059,1781063484000,-1000.0,0.00029863,60]
[424703064,1781063484000,-1000.0,0.00029863,60]
[424703040,1781063484000,-510.02449076,0.00029828,2]
[424703049,1781063484000,-169.929416,0.0002986,7]
[424703046,1781063484000,-554.12379513,0.00029858,2]
[424703050,1781063484000,-1000.0,0.00029863,60]
[424703048,1781063484000,-672.89010755,0.00029858,2]
[424703047,1781063484000,-652.68051013,0.00029858,2]
[424703039,1781063484000,-540.42209253,0.00029828,2]
[424703041,1781063484000,-466.7545728,0.00029828,2]
[424703043,1781063484000,-542.15740671,0.00029828,2]
[424703042,1781063484000,-507.37666741,0.00029828,2]
[424703044,1781063484000,-867.17,0.00029846,30]
[424703063,1781063484000,-1000.0,0.00029863,60]
[424703045,1781063484000,-536.34850028,0.00029858,2]
[424703051,1781063484000,-1000.0,0.00029863,60]
[424703054,1781063484000,-1000.0,0.00029863,60]
[424703056,1781063484000,-1000.0,0.00029863,60]
[424703055,1781063484000,-1000.0,0.00029863,60]
[424703058,1781063484000,-1000.0,0.00029863,60]
[424703057,1781063484000,-1000.0,0.00029863,60]
[424703052,1781063484000,-1000.0,0.00029863,60]
[424703087,1781063484000,-1000.0,0.00029863,60]
[424703061,1781063484000,-1000.0,0.00029863,60]
[424703060,1781063484000,-1000.0,0.00029863,60]
[424703062,1781063484000,-1000.0,0.00029863,60]
[424703053,1781063484000,-1000.0,0.00029863,60]
[424703090,1781063484000,-1000.0,0.00029863,60]
[424703070,1781063484000,-1000.0,0.00029863,60]
[424703089,1781063484000,-1000.0,0.00029863,60]
[424703121,1781063484000,-1000.0,0.00029863,60]
[424703122,1781063484000,-1000.0,0.00029863,60]
[424703126,1781063484000,-1000.0,0.00029863,60]
[424703123,1781063484000,-1000.0,0.00029863,60]
[424703125,1781063484000,-1000.0,0.00029863,60]
[424703128,1781063484000,-1000.0,0.00029863,60]
[424703129,1781063484000,-1000.0,0.00029863,60]
[424703132,1781063484000,-1000.0,0.00029863,60]
[424703133,1781063484000,-1000.0,0.00029863,60]
[424703135,1781063484000,-1000.0,0.00029863,60]
[424703136,1781063484000,-1000.0,0.00029863,60]
[424703124,1781063484000,-1000.0,0.00029863,60]
[424703131,1781063484000,-1000.0,0.00029863,60]
[424703134,1781063484000,-1000.0,0.00029863,60]
[424703137,1781063484000,-1000.0,0.00029863,60]
[424703138,1781063484000,-1000.0,0.00029863,60]
[424703140,1781063484000,-1000.0,0.00029863,60]
[424703146,1781063484000,-243.71608679,0.00029904,2]
[424703145,1781063484000,-221.2403994,0.000299,7]
[424703142,1781063484000,-383.0,0.00029863,60]
[424703141,1781063484000,-1000.0,0.00029863,60]
[424703139,1781063484000,-1000.0,0.00029863,60]
[424703088,1781063484000,-1000.0,0.00029863,60]
[424703144,1781063484000,-67623.68477523,0.000299,2]
[424703130,1781063484000,-1000.0,0.00029863,60]
[424703119,1781063484000,-1000.0,0.00029863,60]
[424703143,1781063484000,-700.0,0.0002987,2]
[424703120,1781063484000,-1000.0,0.00029863,60]
[424703118,1781063484000,-1000.0,0.00029863,60]
[424703097,1781063484000,-1000.0,0.00029863,60]
[424703098,1781063484000,-1000.0,0.00029863,60]
[424703095,1781063484000,-1000.0,0.00029863,60]
[424703099,1781063484000,-1000.0,0.00029863,60]
[424703100,1781063484000,-1000.0,0.00029863,60]
[424703104,1781063484000,-1000.0,0.00029863,60]
[424703105,1781063484000,-1000.0,0.00029863,60]
[424703103,1781063484000,-1000.0,0.00029863,60]
[424703101,1781063484000,-1000.0,0.00029863,60]
[424703102,1781063484000,-1000.0,0.00029863,60]
[424703107,1781063484000,-1000.0,0.00029863,60]
[424703096,1781063484000,-1000.0,0.00029863,60]
[424703108,1781063484000,-1000.0,0.00029863,60]
[424703110,1781063484000,-1000.0,0.00029863,60]
[424703109,1781063484000,-1000.0,0.00029863,60]
[424703113,1781063484000,-1000.0,0.00029863,60]
[424703115,1781063484000,-1000.0,0.00029863,60]
[424703111,1781063484000,-1000.0,0.00029863,60]
[424703112,1781063484000,-1000.0,0.00029863,60]
[424703114,1781063484000,-1000.0,0.00029863,60]
[424703117,1781063484000,-1000.0,0.00029863,60]
[424703127,1781063484000,-1000.0,0.00029863,60]
[424703116,1781063484000,-1000.0,0.00029863,60]
[424703106,1781063484000,-1000.0,0.00029863,60]
[424703187,1781063485000,-400.0,0.0003,20]
[424703181,1781063485000,-2000.0,0.0003,3]
[424703179,1781063485000,-20271.0182104,0.0003,2]
[424703182,1781063485000,-2000.0,0.0003,14]
[424703178,1781063485000,-1360.46591348,0.0003,5]
[424703177,1781063485000,-7000.0,0.0003,3]
[424703176,1781063485000,-186.61122448,0.0003,2]
[424703175,1781063485000,-156631.73021032,0.0003,7]
[424703174,1781063485000,-156631.73021032,0.0003,7]
[424703180,1781063485000,-87877.0,0.0003,2]
[424703186,1781063485000,-1000.0,0.0003,2]
[424703188,1781063485000,-527.93060619,0.0003,30]
[424703185,1781063485000,-588.5559231,0.0003,4]
[424703184,1781063485000,-1853.69363053,0.0003,2]
[424703189,1781063485000,-166.18592264,0.0003,2]
[424703190,1781063485000,-518.83435483,0.0003,24]
[424703192,1781063485000,-158.0,0.0003,30]
[424703193,1781063485000,-508.949,0.0003,15]
[424703195,1781063485000,-2141.99663906,0.0003,30]
[424703194,1781063485000,-4148.0,0.0003,3]
[424703198,1781063485000,-43050.59388486,0.0003,2]
[424703173,1781063485000,-369.19371428,0.0003,30]
[424703196,1781063485000,-108645.72316078,0.0003,5]
[424703183,1781063485000,-1125.82724966,0.0003,2]
[424703169,1781063485000,-241.71117616,0.0002999,2]
[424703160,1781063485000,-282.99334276,0.00029904,2]
[424703172,1781063485000,-865.36,0.00029999,3]
[424703191,1781063485000,-369.19371428,0.0003,30]
[424703148,1781063485000,-229.08570754,0.00029904,2]
[424703147,1781063485000,-645.92374919,0.00029904,2]
[424703150,1781063485000,-719.32435862,0.00029904,2]
[424703149,1781063485000,-238.83737822,0.00029904,2]
[424703157,1781063485000,-667.1005897,0.00029904,2]
[424703158,1781063485000,-502.74938348,0.00029904,2]
[424703151,1781063485000,-211.95536089,0.00029904,2]
[424703152,1781063485000,-352.73743113,0.00029904,2]
[424703153,1781063485000,-514.9758718,0.00029904,2]
[424703154,1781063485000,-557.02603325,0.00029904,2]
[424703155,1781063485000,-466.93241957,0.00029904,2]
[424703156,1781063485000,-574.037668,0.00029904,2]
[424703167,1781063485000,-4821.62,0.00029969,2]
[424703161,1781063485000,-768.49887177,0.00029904,2]
[424703164,1781063485000,-1000.0,0.00029948,2]
[424703168,1781063485000,-12041.27,0.00029969,2]
[424703162,1781063485000,-304.06310187,0.00029904,2]
[424703165,1781063485000,-1743.32,0.00029948,2]
[424703163,1781063485000,-269.18748354,0.00029904,2]
[424703166,1781063485000,-1097.33,0.00029948,2]
[424703159,1781063485000,-518.74691293,0.00029904,2]
[424703170,1781063485000,-259.6,0.00029999,3]
[424703171,1781063485000,-605.75,0.00029999,3]
[424703197,1781063485000,-7132.48695997,0.0003,3]
[424703228,1781063485000,-200.0,0.0003,2]
[424703199,1781063485000,-667.3532118,0.0003,7]
[424703227,1781063485000,-200.0,0.0003,2]
[424703225,1781063485000,-200.0,0.0003,2]
[424703229,1781063485000,-1524.980926,0.0003,2]
[424703233,1781063485000,-903.0,0.00030037,2]
[424703243,1781063485000,-22500.0,0.00030125,2]
[424703236,1781063485000,-1262.17,0.000301,30]
[424703235,1781063485000,-310.078125,0.00030088,2]
[424703237,1781063485000,-3556.0,0.000301,2]
[424703240,1781063485000,-382.0,0.000301,2]
[424703234,1781063485000,-700.0,0.0003007,2]
[424703239,1781063485000,-1274.0,0.000301,2]
[424703242,1781063485000,-419.0,0.000301,2]
[424703241,1781063485000,-933.0,0.000301,2]
[424703245,1781063485000,-22500.0,0.00030125,2]
[424703246,1781063485000,-12500.0,0.00030125,2]
[424703247,1781063485000,-150.0,0.0003013,2]
[424703244,1781063485000,-12500.0,0.00030125,2]
[424703248,1781063485000,-176654.70053775,0.0003013,7]
[424703252,1781063485000,-500.0,0.00030136,60]
[424703249,1781063485000,-20497.93464717,0.0003013,7]
[424703250,1781063485000,-500.0,0.00030136,60]
[424703251,1781063485000,-500.0,0.00030136,60]
[424703204,1781063485000,-1689.88,0.0003,2]
[424703230,1781063485000,-200.0,0.0003,2]
[424703226,1781063485000,-200.0,0.0003,2]
[424703238,1781063485000,-1358.0,0.000301,2]
[424703223,1781063485000,-325.03,0.0003,2]
[424703206,1781063485000,-2624.44,0.0003,2]
[424703224,1781063485000,-385.54,0.0003,2]
[424703202,1781063485000,-11379.57977375,0.0003,2]
[424703208,1781063485000,-25000.0,0.0003,2]
[424703205,1781063485000,-2500.0,0.0003,2]
[424703203,1781063485000,-300.0,0.0003,28]
[424703200,1781063485000,-667.3532118,0.0003,7]
[424703207,1781063485000,-22500.0,0.0003,2]
[424703201,1781063485000,-163.50704258,0.0003,10]
[424703212,1781063485000,-1929.76,0.0003,2]
[424703211,1781063485000,-10000.0,0.0003,2]
[424703213,1781063485000,-22500.0,0.0003,2]
[424703216,1781063485000,-12500.0,0.0003,2]
[424703209,1781063485000,-12500.0,0.0003,2]
[424703231,1781063485000,-200.0,0.0003,2]
[424703210,1781063485000,-2500.0,0.0003,2]
[424703215,1781063485000,-15000.0,0.0003,2]
[424703217,1781063485000,-13112.17,0.0003,2]
[424703218,1781063485000,-2199.17,0.0003,2]
[424703214,1781063485000,-25000.0,0.0003,2]
[424703220,1781063485000,-195.69,0.0003,2]
[424703221,1781063485000,-724.11,0.0003,2]
[424703232,1781063485000,-179.97120458,0.00030014,2]
[424703219,1781063485000,-650.0,0.0003,2]
[424703222,1781063485000,-326.02,0.0003,2]
[424703299,1781063486000,-21674.0,0.00030137,120]
[424703290,1781063486000,-1154.72511064,0.00030137,2]
[424703296,1781063486000,-250.0,0.00030137,120]
[424703298,1781063486000,-186.0,0.00030137,2]
[424703291,1781063486000,-1145.34,0.00030137,30]
[424703281,1781063486000,-1000.0,0.00030137,120]
[424703282,1781063486000,-500.0,0.00030137,3]
[424703283,1781063486000,-500.0,0.00030137,3]
[424703287,1781063486000,-500.0,0.00030137,3]
[424703297,1781063486000,-251.26,0.00030137,120]
[424703288,1781063486000,-500.0,0.00030137,3]
[424703294,1781063486000,-250.0,0.00030137,120]
[424703305,1781063486000,-332.24,0.00030137,120]
[424703293,1781063486000,-250.0,0.00030137,120]
[424703292,1781063486000,-250.0,0.00030137,120]
[424703295,1781063486000,-250.0,0.00030137,120]
[424703300,1781063486000,-852.48,0.00030137,2]
[424703301,1781063486000,-852.48,0.00030137,2]
[424703311,1781063486000,-150.0,0.00030137,2]
[424703302,1781063486000,-852.48,0.00030137,2]
[424703304,1781063486000,-852.48,0.00030137,2]
[424703303,1781063486000,-852.48,0.00030137,2]
[424703309,1781063486000,-480.13,0.00030137,120]
[424703285,1781063486000,-250.0,0.00030137,2]
[424703307,1781063486000,-1000.0,0.00030137,120]
[424703289,1781063486000,-150.0,0.00030137,2]
[424703280,1781063486000,-529.66870379,0.00030137,2]
[424703254,1781063486000,-500.0,0.00030136,60]
[424703286,1781063486000,-151.94973979,0.00030137,5]
[424703306,1781063486000,-169.929416,0.00030137,7]
[424703255,1781063486000,-500.0,0.00030136,60]
[424703253,1781063486000,-500.0,0.00030136,60]
[424703256,1781063486000,-500.0,0.00030136,60]
[424703262,1781063486000,-4821.67,0.00030136,30]
[424703258,1781063486000,-500.0,0.00030136,60]
[424703260,1781063486000,-500.0,0.00030136,60]
[424703265,1781063486000,-861.56,0.00030136,30]
[424703261,1781063486000,-182.54192963,0.00030136,60]
[424703259,1781063486000,-500.0,0.00030136,60]
[424703264,1781063486000,-861.56,0.00030136,30]
[424703266,1781063486000,-150.0,0.00030136,2]
[424703284,1781063486000,-500.0,0.00030137,3]
[424703257,1781063486000,-500.0,0.00030136,60]
[424703268,1781063486000,-150.0,0.00030136,2]
[424703276,1781063486000,-1000.0,0.00030137,30]
[424703277,1781063486000,-236.5044275,0.00030137,2]
[424703267,1781063486000,-150.0,0.00030136,2]
[424703273,1781063486000,-850.49,0.00030137,2]
[424703274,1781063486000,-1000.0,0.00030137,30]
[424703269,1781063486000,-150.0,0.00030136,2]
[424703270,1781063486000,-220.44886758,0.00030136,2]
[424703271,1781063486000,-909.19106664,0.00030137,2]
[424703275,1781063486000,-2500.0,0.00030137,120]
[424703272,1781063486000,-287.27,0.00030137,25]
[424703279,1781063486000,-353.11246919,0.00030137,2]
[424703263,1781063486000,-12041.27,0.00030136,30]
[424703310,1781063486000,-6931.97,0.00030137,7]
[424703278,1781063486000,-176.5562346,0.00030137,2]
[424703312,1781063486000,-1844.05831394,0.0003014,4]
[424703364,1781063486000,-577.6293359,0.0003014,4]
[424703343,1781063486000,-4302.80273254,0.0003014,4]
[424703339,1781063486000,-4302.80273254,0.0003014,4]
[424703344,1781063486000,-4302.80273254,0.0003014,4]
[424703346,1781063486000,-4302.80273254,0.0003014,4]
[424703342,1781063486000,-4302.80273254,0.0003014,4]
[424703349,1781063486000,-4302.80273254,0.0003014,4]
[424703360,1781063486000,-577.6293359,0.0003014,4]
[424703359,1781063486000,-577.6293359,0.0003014,4]
[424703348,1781063486000,-4302.80273254,0.0003014,4]
[424703350,1781063486000,-4302.80273254,0.0003014,4]
[424703352,1781063486000,-577.6293359,0.0003014,4]
[424703340,1781063486000,-4302.80273254,0.0003014,4]
[424703353,1781063486000,-577.6293359,0.0003014,4]
[424703355,1781063486000,-577.6293359,0.0003014,4]
[424703357,1781063486000,-577.6293359,0.0003014,4]
[424703354,1781063486000,-577.6293359,0.0003014,4]
[424703356,1781063486000,-577.6293359,0.0003014,4]
[424703358,1781063486000,-577.6293359,0.0003014,4]
[424703361,1781063486000,-577.6293359,0.0003014,4]
[424703363,1781063486000,-577.6293359,0.0003014,4]
[424703368,1781063486000,-577.6293359,0.0003014,4]
[424703366,1781063486000,-577.6293359,0.0003014,4]
[424703365,1781063486000,-577.6293359,0.0003014,4]
[424703367,1781063486000,-577.6293359,0.0003014,4]
[424703362,1781063486000,-577.6293359,0.0003014,4]
[424703351,1781063486000,-4302.8,0.0003014,4]
[424703347,1781063486000,-4302.80273254,0.0003014,4]
[424703308,1781063486000,-1000.0,0.00030137,120]
[424703337,1781063486000,-4302.80273254,0.0003014,4]
[424703345,1781063486000,-4302.80273254,0.0003014,4]
[424703313,1781063486000,-1844.05831394,0.0003014,4]
[424703323,1781063486000,-1844.05831394,0.0003014,4]
[424703317,1781063486000,-1844.05831394,0.0003014,4]
[424703321,1781063486000,-1844.05831394,0.0003014,4]
[424703318,1781063486000,-1844.05831394,0.0003014,4]
[424703322,1781063486000,-1844.05831394,0.0003014,4]
[424703315,1781063486000,-1844.05831394,0.0003014,4]
[424703319,1781063486000,-1844.05831394,0.0003014,4]
[424703320,1781063486000,-1844.05831394,0.0003014,4]
[424703314,1781063486000,-1844.05831394,0.0003014,4]
[424703324,1781063486000,-1844.05831394,0.0003014,4]
[424703327,1781063486000,-1844.05831394,0.0003014,4]
[424703316,1781063486000,-1844.05831394,0.0003014,4]
[424703325,1781063486000,-1844.05831394,0.0003014,4]
[424703335,1781063486000,-4302.80273254,0.0003014,4]
[424703341,1781063486000,-4302.80273254,0.0003014,4]
[424703338,1781063486000,-4302.80273254,0.0003014,4]
[424703331,1781063486000,-1844.05,0.0003014,4]
[424703333,1781063486000,-4302.80273254,0.0003014,4]
[424703332,1781063486000,-4302.80273254,0.0003014,4]
[424703334,1781063486000,-4302.80273254,0.0003014,4]
[424703336,1781063486000,-4302.80273254,0.0003014,4]
[424703329,1781063486000,-1844.05831394,0.0003014,4]
[424703328,1781063486000,-1844.05831394,0.0003014,4]
[424703326,1781063486000,-1844.05831394,0.0003014,4]
[424703330,1781063486000,-1844.05831394,0.0003014,4]
[424703399,1781063487000,-949.29491266,0.0003014,4]
[424703408,1781063487000,-949.29491266,0.0003014,4]
[424703401,1781063487000,-949.29491266,0.0003014,4]
[424703402,1781063487000,-949.29491266,0.0003014,4]
[424703406,1781063487000,-949.29491266,0.0003014,4]
[424703400,1781063487000,-949.29491266,0.0003014,4]
[424703403,1781063487000,-949.29491266,0.0003014,4]
[424703398,1781063487000,-949.29491266,0.0003014,4]
[424703397,1781063487000,-949.29491266,0.0003014,4]
[424703412,1781063487000,-2215.02146288,0.0003014,4]
[424703404,1781063487000,-949.29491266,0.0003014,4]
[424703410,1781063487000,-949.29491266,0.0003014,4]
[424703422,1781063487000,-2215.02146288,0.0003014,4]
[424703409,1781063487000,-949.29491266,0.0003014,4]
[424703413,1781063487000,-2215.02146288,0.0003014,4]
[424703411,1781063487000,-949.29,0.0003014,4]
[424703416,1781063487000,-2215.02146288,0.0003014,4]
[424703419,1781063487000,-2215.02146288,0.0003014,4]
[424703415,1781063487000,-2215.02146288,0.0003014,4]
[424703417,1781063487000,-2215.02146288,0.0003014,4]
[424703418,1781063487000,-2215.02146288,0.0003014,4]
[424703421,1781063487000,-2215.02146288,0.0003014,4]
[424703423,1781063487000,-2215.02146288,0.0003014,4]
[424703420,1781063487000,-2215.02146288,0.0003014,4]
[424703407,1781063487000,-949.29491266,0.0003014,4]
[424703414,1781063487000,-2215.02146288,0.0003014,4]
[424703405,1781063487000,-949.29491266,0.0003014,4]
[424703377,1781063487000,-1347.80178377,0.0003014,4]
[424703395,1781063487000,-949.29491266,0.0003014,4]
[424703431,1781063487000,-2215.02,0.0003014,4]
[424703371,1781063487000,-577.62,0.0003014,4]
[424703370,1781063487000,-577.6293359,0.0003014,4]
[424703369,1781063487000,-577.6293359,0.0003014,4]
[424703373,1781063487000,-1347.80178377,0.0003014,4]
[424703383,1781063487000,-1347.80178377,0.0003014,4]
[424703384,1781063487000,-1347.80178377,0.0003014,4]
[424703372,1781063487000,-1347.80178377,0.0003014,4]
[424703374,1781063487000,-1347.80178377,0.0003014,4]
[424703375,1781063487000,-1347.80178377,0.0003014,4]
[424703380,1781063487000,-1347.80178377,0.0003014,4]
[424703382,1781063487000,-1347.80178377,0.0003014,4]
[424703396,1781063487000,-949.29491266,0.0003014,4]
[424703378,1781063487000,-1347.80178377,0.0003014,4]
[424703381,1781063487000,-1347.80178377,0.0003014,4]
[424703376,1781063487000,-1347.80178377,0.0003014,4]
[424703385,1781063487000,-1347.80178377,0.0003014,4]
[424703387,1781063487000,-1347.80178377,0.0003014,4]
[424703388,1781063487000,-1347.80178377,0.0003014,4]
[424703394,1781063487000,-949.29491266,0.0003014,4]
[424703391,1781063487000,-1347.8,0.0003014,4]
[424703389,1781063487000,-1347.80178377,0.0003014,4]
[424703386,1781063487000,-1347.80178377,0.0003014,4]
[424703393,1781063487000,-949.29491266,0.0003014,4]
[424703390,1781063487000,-1347.80178377,0.0003014,4]
[424703392,1781063487000,-949.29491266,0.0003014,4]
[424703379,1781063487000,-1347.80178377,0.0003014,4]
[424703424,1781063487000,-2215.02146288,0.0003014,4]
[424703430,1781063487000,-2215.02146288,0.0003014,4]
[424703426,1781063487000,-2215.02146288,0.0003014,4]
[424703455,1781063487000,-200.0,0.000303,2]
[424703459,1781063487000,-729.0,0.00030307,30]
[424703457,1781063487000,-1366.0,0.00030307,30]
[424703460,1781063487000,-891.0,0.00030307,30]
[424703464,1781063487000,-4559.0,0.00030313,30]
[424703462,1781063487000,-714.0,0.00030313,30]
[424703463,1781063487000,-2488.0,0.00030313,30]
[424703461,1781063487000,-953.8,0.00030307,7]
[424703467,1781063487000,-2186.0,0.00030313,30]
[424703466,1781063487000,-632.0,0.00030313,30]
[424703468,1781063487000,-877.0,0.00030313,30]
[424703470,1781063487000,-3594.0,0.00030313,30]
[424703469,1781063487000,-684.0,0.00030313,30]
[424703471,1781063487000,-10000.0,0.00030333,2]
[424703476,1781063487000,-1711.2670834,0.0003036,2]
[424703472,1781063487000,-783.0,0.00030341,5]
[424703475,1781063487000,-531.28112208,0.0003036,2]
[424703473,1781063487000,-241.6875,0.00030355,2]
[424703474,1781063487000,-527.55221202,0.0003036,2]
[424703478,1781063487000,-538.08429839,0.0003036,2]
[424703477,1781063487000,-168.55759593,0.0003036,2]
[424703479,1781063487000,-678.7177958,0.0003036,2]
[424703480,1781063487000,-740.55036402,0.0003036,2]
[424703481,1781063487000,-164.69275589,0.0003036,2]
[424703482,1781063487000,-532.52352901,0.0003036,2]
[424703465,1781063487000,-835.0,0.00030313,30]
[424703458,1781063487000,-379.0,0.00030307,30]
[424703483,1781063487000,-489.76486554,0.0003036,2]
[424703454,1781063487000,-200.0,0.000303,2]
[424703456,1781063487000,-800.0,0.00030307,30]
[424703427,1781063487000,-2215.02146288,0.0003014,4]
[424703425,1781063487000,-2215.02146288,0.0003014,4]
[424703428,1781063487000,-2215.02146288,0.0003014,4]
[424703429,1781063487000,-2215.02146288,0.0003014,4]
[424703432,1781063487000,-711.532411,0.0003016,120]
[424703433,1781063487000,-15826.93546896,0.000302,2]
[424703434,1781063487000,-403.6,0.000302,2]
[424703439,1781063487000,-430.77,0.00030236,30]
[424703442,1781063487000,-661.19524827,0.0003025,5]
[424703436,1781063487000,-600.87,0.000302,2]
[424703441,1781063487000,-1610.6,0.00030239,2]
[424703440,1781063487000,-430.78,0.00030236,30]
[424703437,1781063487000,-700.0,0.00030206,60]
[424703435,1781063487000,-601.02,0.000302,2]
[424703438,1781063487000,-861.56,0.00030236,30]
[424703447,1781063487000,-2500.0,0.0003025,2]
[424703451,1781063487000,-150.0,0.00030273,120]
[424703449,1781063487000,-25000.0,0.0003025,2]
[424703446,1781063487000,-12500.0,0.0003025,2]
[424703444,1781063487000,-22500.0,0.0003025,2]
[424703443,1781063487000,-2500.0,0.0003025,2]
[424703450,1781063487000,-350.0,0.00030265,15]
[424703445,1781063487000,-25000.0,0.0003025,2]
[424703452,1781063487000,-182.600014,0.00030275,5]
[424703453,1781063487000,-1000.0,0.000303,120]
[424703448,1781063487000,-22500.0,0.0003025,2]
[424703521,1781063488000,-451.26477125,0.0003036,2]
[424703522,1781063488000,-1837.14889989,0.0003036,2]
[424703520,1781063488000,-781.84855276,0.0003036,2]
[424703523,1781063488000,-727.14749467,0.0003036,2]
[424703524,1781063488000,-466.94864542,0.0003036,2]
[424703517,1781063488000,-706.22493838,0.0003036,2]
[424703514,1781063488000,-613.54876479,0.0003036,2]
[424703516,1781063488000,-466.61726208,0.0003036,2]
[424703515,1781063488000,-349.56743561,0.0003036,2]
[424703519,1781063488000,-689.6975815,0.0003036,2]
[424703518,1781063488000,-756.10990229,0.0003036,2]
[424703525,1781063488000,-631.86018135,0.0003036,2]
[424703538,1781063488000,-450.9135159,0.0003036,2]
[424703527,1781063488000,-571.74348502,0.0003036,2]
[424703531,1781063488000,-611.46573787,0.0003036,2]
[424703530,1781063488000,-315.84936013,0.0003036,2]
[424703528,1781063488000,-659.19905014,0.0003036,2]
[424703533,1781063488000,-706.88837582,0.0003036,2]
[424703535,1781063488000,-401.40290523,0.0003036,2]
[424703532,1781063488000,-169.12908911,0.0003036,2]
[424703529,1781063488000,-615.78907291,0.0003036,2]
[424703534,1781063488000,-160.77752205,0.0003036,2]
[424703536,1781063488000,-414.88954913,0.0003036,2]
[424703539,1781063488000,-169.10541264,0.0003036,2]
[424703507,1781063488000,-965.89568778,0.0003036,2]
[424703526,1781063488000,-165.23089422,0.0003036,2]
[424703506,1781063488000,-544.74023561,0.0003036,2]
[424703497,1781063488000,-1406.22884193,0.0003036,2]
[424703509,1781063488000,-170.40400356,0.0003036,2]
[424703543,1781063488000,-179.97120458,0.00030362,2]
[424703489,1781063488000,-534.26828852,0.0003036,2]
[424703488,1781063488000,-661.25107956,0.0003036,2]
[424703484,1781063488000,-615.94864541,0.0003036,2]
[424703487,1781063488000,-213.09994071,0.0003036,2]
[424703486,1781063488000,-651.04532667,0.0003036,2]
[424703485,1781063488000,-682.85577595,0.0003036,2]
[424703491,1781063488000,-677.5990656,0.0003036,2]
[424703501,1781063488000,-1623.77636565,0.0003036,2]
[424703494,1781063488000,-730.14237501,0.0003036,2]
[424703490,1781063488000,-687.73650861,0.0003036,2]
[424703492,1781063488000,-330.35275645,0.0003036,2]
[424703510,1781063488000,-464.45406633,0.0003036,2]
[424703493,1781063488000,-443.33129397,0.0003036,2]
[424703495,1781063488000,-473.00885499,0.0003036,2]
[424703498,1781063488000,-347.18418324,0.0003036,2]
[424703500,1781063488000,-412.19542883,0.0003036,2]
[424703499,1781063488000,-385.16918777,0.0003036,2]
[424703504,1781063488000,-178.39596122,0.0003036,2]
[424703502,1781063488000,-168.1843901,0.0003036,2]
[424703513,1781063488000,-647.68331685,0.0003036,2]